Workbook

Sheet calc
B2: TAB: NELSON-SIEGEL TERM STRUCTURE | AE2: yields eliminated
AE3: yields fitted
B4: Yield Sample | I4: Output | Q4: Calculator: | AA4: Yields and fitted yields | AE4: yields actual | AK4: R2(α)
I5: α | J5: β0 | K5: β1 | L5: β2 | Q5: Parameter | R5: Object
B6: Sample count | I6: =_xll.AC.finance.irb.yts._get(R9, config!D6, 1) -> 0.3333333333 | J6: 1.0198645 | K6: 2.199463667 | L6: 4.216609624 | Q6: tenors: | R6: =_xll.AC.data.list_x(OFFSET(C12, 0, 0, D7, 1), 1, 1) -> java.util.ArrayList@Wed, 26 Sep 2018 15:07:26:758..1137113503805849784
B7: Original | D7: =COUNTA(sample!C6:C101) -> 8 | Q7: yields: | R7: =_xll.AC.data.list_x(OFFSET(D12, 0, 0, D7, 1), 1, 1) -> java.util.ArrayList@Wed, 26 Sep 2018 15:07:26:758..2239115289336395169
B8: Final | D8: =D7-Y13 -> 8 | K8: RMSE | L8: =SQRT(SUMPRODUCT(L12:L50, L12:L50) / D8) -> 0.04730258722 | Q8: parameters: | R8: =_xll.AC.data.map(U12:U16, Y12:Y16) -> java.util.LinkedHashMap@Wed, 26 Sep 2018 15:07:26:757..1132630691865613397
Q9: calculator: | R9: =_xll.AC.finance.irb.yts.calcTS("NS", R6, R7, R8) -> jeconkr.finance.FSTP.lib.model.yts.calculator.CalculatorNelsonSiegelS@Wed, 26 Sep 2018 15:16:26:700..8870130776766751500
B10: Original sample | I10: Final sample | N10: R2(α)
B11: # | C11: tenor | D11: yield actual | E11: index in final sample | F11: yield actual matched | G11: yield fitted matched | I11: tenor | J11: yield actual | K11: yield fitted | L11: res | N11: α | O11: R2 | Q11: Available methods | S11: α | U11: Parameter | Y11: Value | Z11: Test
B12: 1 | C12: =IF(B12="", "", OFFSET(sample!$E$5, B12, 0)) -> 1.56605065 | D12: =IF(B12="", "", OFFSET(sample!$F$5, B12, 0)) -> 3.521 | E12: =IF(B12="", "", IF(ISERROR(MATCH(B12, $Y$21:$Y$50, 0)), "", MATCH(B12, $Y$21:$Y$50, 0))) -> 1 | F12: =IF(B12="", "", IF(E12="", "", D12)) -> 3.521 | G12: =IF(B12="", "", TS!L28) -> 3.516497136 | I12: =_xll.AC.finance.irb.yts._get(R9, config!D7, 1) -> 1.56605065 | J12: 3.521 | K12: 3.516497136 | L12: 0.004502864218 | N12: =_xll.AC.finance.irb.yts._get(R9, config!D10, 0) -> 0.3333333333 | O12: 0.8737966546 | Q12: =config!B6 -> Diebold-Li | S12: =1/1.37 -> 0.7299270073 | U12: method | Y12: =Q13 -> Fabozzi
B13: =IF(OR(B12=$D$7, B12=""), "", B12+1) -> 2 | C13: =IF(B13="", "", OFFSET(sample!$E$5, B13, 0)) -> 0.1724845996 | D13: =IF(B13="", "", OFFSET(sample!$F$5, B13, 0)) -> 3.255 | E13: =IF(B13="", "", IF(ISERROR(MATCH(B13, $Y$21:$Y$50, 0)), "", MATCH(B13, $Y$21:$Y$50, 0))) -> 2 | F13: =IF(B13="", "", IF(E13="", "", D13)) -> 3.255 | G13: =IF(B13="", "", TS!L29) -> 3.273962929 | I13: 0.1724845996 | J13: 3.255 | K13: 3.273962929 | L13: -0.01896292866 | N13: 0.3333333333 | O13: 0.8737966546 | Q13: =config!B7 -> Fabozzi | S13: =1/3 -> 0.3333333333 | U13: screen-count | Y13: 0
B14: =IF(OR(B13=$D$7, B13=""), "", B13+1) -> 3 | C14: =IF(B14="", "", OFFSET(sample!$E$5, B14, 0)) -> 2.403832991 | D14: =IF(B14="", "", OFFSET(sample!$F$5, B14, 0)) -> 3.548 | E14: 3 | F14: 3.548 | G14: =IF(B14="", "", TS!L30) -> 3.541622837 | I14: 2.403832991 | J14: 3.548 | K14: 3.541622837 | L14: 0.006377163309 | N14: 0.3333333333 | O14: 0.8737966546 | Q14: =config!B8 -> Nelson-Siegel | S14: [0, 1] | U14: yield-short-term | Y14: 0 | Z14: =J6+K6 -> 3.219328167
B15: 4 | C15: =IF(B15="", "", OFFSET(sample!$E$5, B15, 0)) -> 0.2108145106 | D15: =IF(B15="", "", OFFSET(sample!$F$5, B15, 0)) -> 3.255 | E15: 4 | F15: 3.255 | G15: =IF(B15="", "", TS!L31) -> 3.2852198 | I15: 0.2108145106 | J15: 3.255 | K15: 3.2852198 | L15: -0.0302198004 | N15: 0.3333333333 | O15: 0.8737966546 | Q15: =config!B9 -> Ridge-OLS | S15: [0, 1] | U15: yield-medium-term | Y15: 0 | Z15: =TS!L15 -> 3.345989964
B16: 5 | C16: =IF(B16="", "", OFFSET(sample!$E$5, B16, 0)) -> 0.3832991102 | D16: =IF(B16="", "", OFFSET(sample!$F$5, B16, 0)) -> 3.345 | E16: 5 | F16: 3.345 | G16: =IF(B16="", "", TS!L32) -> 3.332106128 | I16: 0.3832991102 | J16: 3.345 | K16: 3.332106128 | L16: 0.01289387156 | N16: 0.3333333333 | O16: 0.8737966546 | U16: yield-long-term | Y16: 0 | Z16: =J6 -> 1.0198645
B17: 6 | C17: =IF(B17="", "", OFFSET(sample!$E$5, B17, 0)) -> 0.2491444216 | D17: =IF(B17="", "", OFFSET(sample!$F$5, B17, 0)) -> 3.255 | E17: 6 | F17: 3.255 | G17: =IF(B17="", "", TS!L33) -> 3.296166278 | I17: 0.2491444216 | J17: 3.255 | K17: 3.296166278 | L17: -0.04116627824 | N17: 0.3333333333 | O17: 0.8737966546 | AA17: Eliminated observations
B18: 7 | C18: =IF(B18="", "", OFFSET(sample!$E$5, B18, 0)) -> 0.05749486653 | D18: =IF(B18="", "", OFFSET(sample!$F$5, B18, 0)) -> 3.343 | E18: 7 | F18: 3.343 | G18: =IF(B18="", "", TS!L34) -> 3.238278867 | I18: 0.05749486653 | J18: 3.343 | K18: 3.238278867 | L18: 0.1047211328 | N18: 0.3333333333 | O18: 0.8737966546 | Q18: Eliminated observations | W18: Elimination index mapping
B19: 8 | C19: =IF(B19="", "", OFFSET(sample!$E$5, B19, 0)) -> 0.3258042437 | D19: =IF(B19="", "", OFFSET(sample!$F$5, B19, 0)) -> 3.256 | E19: 8 | F19: 3.256 | G19: =IF(B19="", "", TS!L35) -> 3.317147977 | I19: 0.3258042437 | J19: 3.256 | K19: 3.317147977 | L19: -0.06114797651 | N19: 0.3333333333 | O19: 0.8737966546
C20: =IF(B20="", "", OFFSET(sample!$E$5, B20, 0)) ->  | D20: =IF(B20="", "", OFFSET(sample!$F$5, B20, 0)) ->  | G20: =IF(B20="", "", TS!L36) ->  | N20: 0.3333333333 | O20: 0.8737966546 | Q20: # | R20: residuals | S20: index | T20: yield - ST | U20: yield - LT | W20: # | X20: final | Y20: original
C21: =IF(B21="", "", OFFSET(sample!$E$5, B21, 0)) ->  | D21: =IF(B21="", "", OFFSET(sample!$F$5, B21, 0)) ->  | G21: =IF(B21="", "", TS!L37) ->  | N21: 0.3333333333 | O21: 0.8737966546 | Q21: 1 | R21: =_xll.AC.finance.irb.yts._get(R9, config!D8, 1) ->  | W21: 1 | X21: =_xll.AC.finance.irb.yts._get(R9, config!D9, 0) -> 1 | Y21: 1
C22: =IF(B22="", "", OFFSET(sample!$E$5, B22, 0)) ->  | D22: =IF(B22="", "", OFFSET(sample!$F$5, B22, 0)) ->  | G22: =IF(B22="", "", TS!L38) ->  | N22: 0.3333333333 | O22: 0.8737966546 | Q22: =IF(R22="", "", Q21+1) ->  | W22: =IF(X22="", "", W21+1) -> 2 | X22: 2 | Y22: 2
C23: =IF(B23="", "", OFFSET(sample!$E$5, B23, 0)) ->  | D23: =IF(B23="", "", OFFSET(sample!$F$5, B23, 0)) ->  | G23: =IF(B23="", "", TS!L39) ->  | N23: 0.3333333333 | O23: 0.8737966546 | Q23: =IF(R23="", "", Q22+1) ->  | W23: =IF(X23="", "", W22+1) -> 3 | X23: 3 | Y23: 3
C24: =IF(B24="", "", OFFSET(sample!$E$5, B24, 0)) ->  | D24: =IF(B24="", "", OFFSET(sample!$F$5, B24, 0)) ->  | G24: =IF(B24="", "", TS!L40) ->  | N24: 0.3333333333 | O24: 0.8737966546 | W24: 4 | X24: 4 | Y24: 4
C25: =IF(B25="", "", OFFSET(sample!$E$5, B25, 0)) ->  | D25: =IF(B25="", "", OFFSET(sample!$F$5, B25, 0)) ->  | G25: =IF(B25="", "", TS!L41) ->  | N25: 0.3333333333 | O25: 0.8737966546 | W25: 5 | X25: 5 | Y25: 5
C26: =IF(B26="", "", OFFSET(sample!$E$5, B26, 0)) ->  | D26: =IF(B26="", "", OFFSET(sample!$F$5, B26, 0)) ->  | G26: =IF(B26="", "", TS!L42) ->  | N26: 0.3333333333 | O26: 0.8737966546 | W26: 6 | X26: 6 | Y26: 6
C27: =IF(B27="", "", OFFSET(sample!$E$5, B27, 0)) ->  | D27: =IF(B27="", "", OFFSET(sample!$F$5, B27, 0)) ->  | G27: =IF(B27="", "", TS!L43) ->  | N27: 0.3333333333 | O27: 0.8737966546 | W27: 7 | X27: 7 | Y27: 7
C28: =IF(B28="", "", OFFSET(sample!$E$5, B28, 0)) ->  | D28: =IF(B28="", "", OFFSET(sample!$F$5, B28, 0)) ->  | G28: =IF(B28="", "", TS!L44) ->  | N28: 0.3333333333 | O28: 0.8737966546 | W28: 8 | X28: 8 | Y28: 8
C29: =IF(B29="", "", OFFSET(sample!$E$5, B29, 0)) ->  | D29: =IF(B29="", "", OFFSET(sample!$F$5, B29, 0)) ->  | G29: =IF(B29="", "", TS!L45) ->  | N29: 0.3333333333 | O29: 0.8737966546
C30: =IF(B30="", "", OFFSET(sample!$E$5, B30, 0)) ->  | D30: =IF(B30="", "", OFFSET(sample!$F$5, B30, 0)) ->  | G30: =IF(B30="", "", TS!L46) -> 
C31: =IF(B31="", "", OFFSET(sample!$E$5, B31, 0)) ->  | D31: =IF(B31="", "", OFFSET(sample!$F$5, B31, 0)) ->  | G31: =IF(B31="", "", TS!L47) -> 
C32: =IF(B32="", "", OFFSET(sample!$E$5, B32, 0)) ->  | D32: =IF(B32="", "", OFFSET(sample!$F$5, B32, 0)) ->  | G32: =IF(B32="", "", TS!L48) -> 
C33: =IF(B33="", "", OFFSET(sample!$E$5, B33, 0)) ->  | D33: =IF(B33="", "", OFFSET(sample!$F$5, B33, 0)) ->  | G33: =IF(B33="", "", TS!L49) ->  | AA33: Residuals
C34: =IF(B34="", "", OFFSET(sample!$E$5, B34, 0)) ->  | D34: =IF(B34="", "", OFFSET(sample!$F$5, B34, 0)) ->  | G34: =IF(B34="", "", TS!L50) -> 
C35: =IF(B35="", "", OFFSET(sample!$E$5, B35, 0)) ->  | D35: =IF(B35="", "", OFFSET(sample!$F$5, B35, 0)) ->  | G35: =IF(B35="", "", TS!L51) ->  | Q35: =IF(OR(Q34="", Q34>=$Y$13), "", Q34+1) -> 
C36: =IF(B36="", "", OFFSET(sample!$E$5, B36, 0)) ->  | D36: =IF(B36="", "", OFFSET(sample!$F$5, B36, 0)) ->  | G36: =IF(B36="", "", TS!L52) ->  | Q36: =IF(OR(Q35="", Q35>=$Y$13), "", Q35+1) ->  | R36: =IF(Q36="", "", OFFSET(sample!$D$5, S28, 0)) -> 
C37: =IF(B37="", "", OFFSET(sample!$E$5, B37, 0)) ->  | D37: =IF(B37="", "", OFFSET(sample!$F$5, B37, 0)) ->  | G37: =IF(B37="", "", TS!L53) ->  | Q37: =IF(Q21="", "", Q21) -> 1 | R37: =IF(Q37="", "", OFFSET(sample!$C$6, S21, 0)) ->  | T37: =IF(Q37="", "", OFFSET(sample!$D$5, S21, 0)) -> 
C38: =IF(B38="", "", OFFSET(sample!$E$5, B38, 0)) ->  | D38: =IF(B38="", "", OFFSET(sample!$F$5, B38, 0)) ->  | G38: =IF(B38="", "", TS!L54) ->  | Q38: =IF(Q22="", "", Q22) ->  | R38: =IF(Q38="", "", OFFSET(sample!$C$6, S22, 0)) ->  | T38: =IF(Q38="", "", OFFSET(sample!$D$5, S22, 0)) -> 
C39: =IF(B39="", "", OFFSET(sample!$E$5, B39, 0)) ->  | D39: =IF(B39="", "", OFFSET(sample!$F$5, B39, 0)) ->  | G39: =IF(B39="", "", TS!L55) ->  | R39: =IF(Q39="", "", OFFSET(sample!$C$6, S23, 0)) ->  | T39: =IF(Q39="", "", OFFSET(sample!$D$5, S23, 0)) -> 
C40: =IF(B40="", "", OFFSET(sample!$E$5, B40, 0)) ->  | D40: =IF(B40="", "", OFFSET(sample!$F$5, B40, 0)) ->  | G40: =IF(B40="", "", TS!L56) ->  | R40: =IF(Q40="", "", OFFSET(sample!$C$6, S24, 0)) ->  | T40: =IF(Q40="", "", OFFSET(sample!$D$5, S24, 0)) -> 
C41: =IF(B41="", "", OFFSET(sample!$E$5, B41, 0)) ->  | D41: =IF(B41="", "", OFFSET(sample!$F$5, B41, 0)) ->  | G41: =IF(B41="", "", TS!L57) ->  | R41: =IF(Q41="", "", OFFSET(sample!$C$6, S25, 0)) ->  | T41: =IF(Q41="", "", OFFSET(sample!$D$5, S25, 0)) -> 
C42: =IF(B42="", "", OFFSET(sample!$E$5, B42, 0)) ->  | D42: =IF(B42="", "", OFFSET(sample!$F$5, B42, 0)) ->  | G42: =IF(B42="", "", TS!L58) ->  | R42: =IF(Q42="", "", OFFSET(sample!$C$6, S26, 0)) ->  | T42: =IF(Q42="", "", OFFSET(sample!$D$5, S34, 0)) -> 
C43: =IF(B43="", "", OFFSET(sample!$E$5, B43, 0)) ->  | D43: =IF(B43="", "", OFFSET(sample!$F$5, B43, 0)) ->  | G43: =IF(B43="", "", TS!L59) ->  | R43: =IF(Q43="", "", OFFSET(sample!$C$6, S27, 0)) ->  | T43: =IF(Q43="", "", OFFSET(sample!$D$5, S35, 0)) -> 
C44: =IF(B44="", "", OFFSET(sample!$E$5, B44, 0)) ->  | D44: =IF(B44="", "", OFFSET(sample!$F$5, B44, 0)) ->  | G44: =IF(B44="", "", TS!L60) ->  | R44: =IF(Q44="", "", OFFSET(sample!$C$6, S28, 0)) ->  | T44: =IF(Q44="", "", OFFSET(sample!$D$5, S36, 0)) -> 
C45: =IF(B45="", "", OFFSET(sample!$E$5, B45, 0)) ->  | D45: =IF(B45="", "", OFFSET(sample!$F$5, B45, 0)) ->  | G45: =IF(B45="", "", TS!L61) ->  | R45: =IF(Q45="", "", OFFSET(sample!$C$6, S29, 0)) ->  | T45: =IF(Q45="", "", OFFSET(sample!$D$5, AA33, 0)) -> 
C46: =IF(B46="", "", OFFSET(sample!$E$5, B46, 0)) ->  | D46: =IF(B46="", "", OFFSET(sample!$F$5, B46, 0)) ->  | G46: =IF(B46="", "", TS!L62) ->  | R46: =IF(Q46="", "", OFFSET(sample!$C$6, S30, 0)) ->  | T46: =IF(Q46="", "", OFFSET(sample!$D$5,#REF!, 0)) -> 
C47: =IF(B47="", "", OFFSET(sample!$E$5, B47, 0)) ->  | D47: =IF(B47="", "", OFFSET(sample!$F$5, B47, 0)) ->  | G47: =IF(B47="", "", TS!L63) ->  | R47: =IF(Q47="", "", OFFSET(sample!$C$6, S31, 0)) ->  | T47: =IF(Q47="", "", OFFSET(sample!$D$5,#REF!, 0)) -> 
C48: =IF(B48="", "", OFFSET(sample!$E$5, B48, 0)) ->  | D48: =IF(B48="", "", OFFSET(sample!$F$5, B48, 0)) ->  | G48: =IF(B48="", "", TS!L64) ->  | R48: =IF(Q48="", "", OFFSET(sample!$C$6, S32, 0)) ->  | T48: =IF(Q48="", "", OFFSET(sample!$D$5,#REF!, 0)) -> 
C49: =IF(B49="", "", OFFSET(sample!$E$5, B49, 0)) ->  | D49: =IF(B49="", "", OFFSET(sample!$F$5, B49, 0)) ->  | G49: =IF(B49="", "", TS!L65) ->  | R49: =IF(Q49="", "", OFFSET(sample!$C$6, S33, 0)) ->  | T49: =IF(Q49="", "", OFFSET(sample!$D$5,#REF!, 0)) -> 
C50: =IF(B50="", "", OFFSET(sample!$E$5, B50, 0)) ->  | D50: =IF(B50="", "", OFFSET(sample!$F$5, B50, 0)) ->  | G50: =IF(B50="", "", TS!L66) ->  | R50: =IF(Q50="", "", OFFSET(sample!$C$6, S34, 0)) ->  | T50: =IF(Q50="", "", OFFSET(sample!$D$5, S42, 0)) -> 

Sheet TS
B2: TAB: YIELD FITTED TERM STRUCTURE
C4: α | D4: β0 | E4: β1 | F4: β2 | S4: Term structure
B5: coefficient | C5: =calc!I6 -> 0.3333333333 | D5: =calc!J6 -> 1.0198645 | E5: =calc!K6 -> 2.199463667 | F5: =calc!L6 -> 4.216609624
B7: Full term structure | H7: Standard term structure | N7: Yields estimated from the term structure
B8: Maturity | C8: level | D8: slope | E8: curvature | F8: yield | H8: =B8 -> Maturity | I8: =C8 -> level | J8: slope | K8: curvature | L8: yield | N8: Parameter | Q8: Value
B9: 0.01 | C9: 1 | D9: =(1 - EXP(-$C$5*$B9)) / ($C$5*$B9) -> 0.9983351836 | E9: =(1 - EXP(-$C$5*$B9)) / ($C$5*$B9) - EXP(-$C$5*$B9) -> 0.001662967588 | F9: =SUMPRODUCT(D$5:F$5, C9:E9) -> 3.222678549 | H9: 0.25 | I9: 1 | J9: =(1 - EXP(-$C$5*$H9)) / ($C$5*$H9) -> 0.9594670244 | K9: =(1 - EXP(-$C$5*$H9)) / ($C$5*$H9) - EXP(-$C$5*$H9) -> 0.03942260982 | L9: =SUMPRODUCT(D$5:F$5, I9:K9) -> 3.296407116 | N9: Long-term yield (level) | Q9: =D5 -> 1.0198645
B10: 1 | C10: 1 | D10: =(1 - EXP(-$C$5*$B10)) / ($C$5*$B10) -> 0.8504060683 | E10: =(1 - EXP(-$C$5*$B10)) / ($C$5*$B10) - EXP(-$C$5*$B10) -> 0.1338747577 | F10: =SUMPRODUCT(D$5:F$5, C10:E10) -> 3.454799341 | H10: 0.5 | I10: 1 | J10: =(1 - EXP(-$C$5*$H10)) / ($C$5*$H10) -> 0.9211096507 | K10: =(1 - EXP(-$C$5*$H10)) / ($C$5*$H10) - EXP(-$C$5*$H10) -> 0.07462792577 | L10: =SUMPRODUCT(D$5:F$5, I10:K10) -> 3.36048854 | N10: Short-term yield (level + slope) | Q10: =D5+E5 -> 3.219328167
B11: =B10+1 -> 2 | C11: 1 | D11: 0.7298743215 | E11: 0.2164572024 | F11: 3.537912075 | H11: 1 | I11: 1 | J11: 0.8504060683 | K11: 0.1338747577 | L11: 3.454799341 | N11: Long-term premium (-slope) | Q11: =-E5 -> -2.199463667
B12: =B11+1 -> 3 | C12: 1 | D12: 0.6321205588 | E12: 0.2642411177 | F12: 3.524392342 | H12: =H11+1 -> 2 | I12: 1 | J12: 0.7298743215 | K12: 0.2164572024 | L12: 3.537912075
B13: 4 | C13: 1 | D13: 0.5523021464 | E13: 0.2887050083 | F13: 3.451989321 | H13: =H12+1 -> 3 | I13: 1 | J13: 0.6321205588 | K13: 0.2642411177 | L13: 3.524392342 | N13: Actual yields
B14: 5 | C14: 1 | D14: 0.4866746383 | E14: 0.2977990355 | F14: 3.345989964 | H14: 4 | I14: 1 | J14: 0.5523021464 | K14: 0.2887050083 | L14: 3.451989321 | N14: Longest maturity yield (level) | Q14: =OFFSET(calc!D11, calc!D7, 0) -> 3.256
B15: 6 | C15: 1 | D15: 0.4323323584 | E15: 0.2969970751 | F15: 3.22308454 | H15: 5 | I15: 1 | J15: 0.4866746383 | K15: 0.2977990355 | L15: 3.345989964 | N15: Shortest maturity yield | Q15: =calc!D12 -> 3.521
B16: 7 | C16: 1 | D16: 0.3870120138 | E16: 0.2900400459 | F16: 3.094069012 | H16: =H15+2 -> 7 | I16: 1 | J16: 0.3870120138 | K16: 0.2900400459 | L16: 3.094069012 | N16: Long-term premium | Q16: =Q14-Q15 -> -0.265
B17: 8 | C17: 1 | D17: 0.3489437058 | E17: 0.2794602546 | F17: 2.965728302 | H17: 8 | I17: 1 | J17: 0.3489437058 | K17: 0.2794602546 | L17: 2.965728302
B18: 9 | C18: 1 | D18: 0.3167376439 | E18: 0.2669505755 | F18: 2.842143806 | H18: 9 | I18: 1 | J18: 0.3167376439 | K18: 0.2669505755 | L18: 2.842143806 | N18: Mid-term maturity (τ) | Q18: =curv!J8 -> 4.8
B19: 10 | C19: 1 | D19: 0.289297802 | E19: 0.2536238086 | F19: 2.725597097 | H19: 10 | I19: 1 | J19: 0.289297802 | K19: 0.2536238086 | L19: 2.725597097 | S19: Slope
B20: 11 | C20: 1 | D20: 0.2657559455 | E20: 0.2401944123 | F20: 2.617191117 | H20: =H19+5 -> 15 | I20: 1 | J20: 0.1986524106 | K20: 0.1919144636 | L20: 2.266021634
B21: 12 | C21: 1 | D21: 0.2454210903 | E21: 0.2271054514 | F21: 2.517274303 | H21: =H20+5 -> 20 | I21: 1 | J21: 0.1498091049 | K21: 0.1485364711 | L21: 1.975684497
B22: 13 | C22: 1 | D22: 0.227740678 | E22: 0.2146169492 | F22: 2.425727741 | H22: 25 | I22: 1 | J22: 0.1199711557 | K22: 0.1197307862 | L22: 1.788594683
B23: 14 | C23: 1 | D23: 0.2122706652 | E23: 0.2028671026 | F23: 2.342157493 | H23: 30 | I23: 1 | J23: 0.09999546001 | K23: 0.09995006008 | L23: 1.661251267
B24: 15 | C24: 1 | D24: 0.1986524106 | E24: 0.1919144636 | F24: 2.266021634
B25: 16 | C25: 1 | D25: 0.1865947594 | E25: 0.1817668094 | F25: 2.196712572
B26: 17 | C26: 1 | D26: 0.1758601099 | E26: 0.1724007325 | F26: 2.13360901 | H26: Sample-based term structure
B27: 18 | C27: 1 | D27: 0.1662535413 | E27: 0.1637747891 | F27: 2.076107476 | H27: =H8 -> Maturity | I27: =I8 -> level | J27: slope | K27: curvature | L27: yield
B28: 19 | C28: 1 | D28: 0.1576142994 | E28: 0.1558381959 | F28: 2.023640262 | H28: =IF(calc!C12="", "", calc!C12) -> 1.56605065 | I28: =IF(H28="", "", 1) -> 1 | J28: =IF(H28="", "", (1 - EXP(-$C$5*$H28)) / ($C$5*$H28)) -> 0.7790501327 | K28: =IF(H28="", "", (1 - EXP(-$C$5*$H28)) / ($C$5*$H28) - EXP(-$C$5*$H28)) -> 0.1857274549 | L28: =IF(H28="", "", SUMPRODUCT(D$5:F$5, I28:K28)) -> 3.516497136
B29: 20 | C29: 1 | D29: 0.1498091049 | E29: 0.1485364711 | F29: 1.975684497 | H29: =IF(calc!C13="", "", calc!C13) -> 0.1724845996 | I29: =IF(H29="", "", 1) -> 1 | J29: =IF(H29="", "", (1 - EXP(-$C$5*$H29)) / ($C$5*$H29)) -> 0.9717956811 | K29: =IF(H29="", "", (1 - EXP(-$C$5*$H29)) / ($C$5*$H29) - EXP(-$C$5*$H29)) -> 0.02766894409 | L29: =IF(H29="", "", SUMPRODUCT(D$5:F$5, I29:K29)) -> 3.273962929
B30: 21 | C30: 1 | D30: 0.142726874 | E30: 0.141814992 | F30: 1.931765534 | H30: =IF(calc!C14="", "", calc!C14) -> 2.403832991 | I30: 1 | J30: 0.6879572283 | K30: 0.2392019889 | L30: 3.541622837
B31: 22 | C31: 1 | D31: 0.1362745375 | E31: 0.1356211455 | F31: 1.891456821 | H31: =IF(calc!C15="", "", calc!C15) -> 0.2108145106 | I31: 1 | J31: 0.9656730045 | K31: 0.03353229846 | L31: 3.2852198
B32: 23 | C32: 1 | D32: 0.1303737162 | E32: 0.1299055404 | F32: 1.854377704 | H32: =IF(calc!C16="", "", calc!C16) -> 0.3832991102 | I32: 1 | J32: 0.938752793 | K32: 0.05869382978 | L32: 3.332106128
B33: 24 | C33: 1 | D33: 0.1249580672 | E33: 0.1246226045 | F33: 1.820190103 | H33: =IF(calc!C17="", "", calc!C17) -> 0.2491444216 | I33: 1 | J33: 0.9596019537 | K33: 0.03929511163 | L33: 3.296166278
B34: 25 | C34: 1 | D34: 0.1199711557 | E34: 0.1197307862 | F34: 1.788594683 | H34: =IF(calc!C18="", "", calc!C18) -> 0.05749486653 | I34: 1 | J34: 0.990478446 | K34: 0.009460921336 | L34: 3.238278867 | S34: Curvature
B35: 26 | C35: 1 | D35: 0.1153647424 | E35: 0.1151925102 | F35: 1.759326907 | H35: =IF(calc!C19="", "", calc!C19) -> 0.3258042437 | I35: 1 | J35: 0.9476127727 | K35: 0.05052486029 | L35: 3.317147977
B36: 27 | C36: 1 | D36: 0.1110973989 | E36: 0.1109739891 | F36: 1.732153183 | H36: =IF(calc!C20="", "", calc!C20) -> 
B37: 28 | C37: 1 | D37: 0.1071333828 | E37: 0.1070449558 | F37: 1.706867274 | H37: =IF(calc!C21="", "", calc!C21) -> 
B38: 29 | C38: 1 | D38: 0.1034417213 | E38: 0.1033783606 | F38: 1.683286998 | H38: =IF(calc!C22="", "", calc!C22) -> 
B39: 30 | C39: 1 | D39: 0.09999546001 | E39: 0.09995006008 | F39: 1.661251267 | H39: =IF(calc!C23="", "", calc!C23) -> 
H40: =IF(calc!C24="", "", calc!C24) -> 
H41: =IF(calc!C25="", "", calc!C25) -> 
H42: =IF(calc!C26="", "", calc!C26) -> 
H43: =IF(calc!C27="", "", calc!C27) -> 
H44: =IF(calc!C28="", "", calc!C28) -> 
H45: =IF(calc!C29="", "", calc!C29) -> 
H46: =IF(calc!C30="", "", calc!C30) -> 
H47: =IF(calc!C31="", "", calc!C31) -> 
H48: =IF(calc!C32="", "", calc!C32) -> 
H49: =IF(calc!C33="", "", calc!C33) ->  | I49: =IF(H49="", "", 1) ->  | J49: =IF(H49="", "", (1 - EXP(-$C$5*$H49)) / ($C$5*$H49)) ->  | K49: =IF(H49="", "", (1 - EXP(-$C$5*$H49)) / ($C$5*$H49) - EXP(-$C$5*$H49)) ->  | L49: =IF(H49="", "", SUMPRODUCT(D$5:F$5, I49:K49)) -> 
H50: =IF(calc!C34="", "", calc!C34) -> 
H51: =IF(calc!C35="", "", calc!C35) -> 
H52: =IF(calc!C36="", "", calc!C36) -> 
H53: =IF(calc!C37="", "", calc!C37) -> 
H54: =IF(calc!C38="", "", calc!C38) -> 
H55: =IF(calc!C39="", "", calc!C39) -> 
H56: =IF(calc!C40="", "", calc!C40) -> 
H57: =IF(calc!C41="", "", calc!C41) -> 
H58: =IF(calc!C42="", "", calc!C42) -> 
H59: =IF(calc!C43="", "", calc!C43) -> 
H60: =IF(calc!C44="", "", calc!C44) -> 

Sheet sample
B2: TAB: SAMPLE DATA | I2: =calc!D8 -> 8
B4: Original Sample | I4: Final Sample
B5: # | C5: Transaction-specific Bloomberg code | D5: Issuer Name | E5: Tenor | F5: Yield | G5: is eliminated | I5: =B5 -> # | J5: =C5 -> Transaction-specific Bloomberg code | K5: Issuer Name | L5: Tenor | M5: Yield
B6: 1 | C6: QZ766903 Corp | D6: MALAYSIA INVESTMNT ISSUE | E6: 1.56605065 | F6: 3.521 | G6: =IF(B6="", "", IF(ISERROR(MATCH(B6, calc!$Y$21:$Y$50, 0)), 1, 0)) -> 0 | I6: 1 | J6: =IF($I6="", "", OFFSET(C$5, calc!$Y21, 0)) -> QZ766903 Corp | K6: =IF($I6="", "", OFFSET(D$5, calc!$Y21, 0)) -> MALAYSIA INVESTMNT ISSUE | L6: =IF($I6="", "", OFFSET(E$5, calc!$Y21, 0)) -> 1.56605065 | M6: =IF($I6="", "", OFFSET(F$5, calc!$Y21, 0)) -> 3.521
B7: =IF(C7="", "", B6+1) -> 2 | C7: AU144805 Corp | D7: MALAYSIA T-BILL | E7: 0.1724845996 | F7: 3.255 | G7: =IF(B7="", "", IF(ISERROR(MATCH(B7, calc!$Y$21:$Y$50, 0)), 1, 0)) -> 0 | I7: =IF(calc!W22="", "", calc!W22) -> 2 | J7: =IF($I7="", "", OFFSET(C$5, calc!$Y22, 0)) -> AU144805 Corp | K7: =IF($I7="", "", OFFSET(D$5, calc!$Y22, 0)) -> MALAYSIA T-BILL | L7: =IF($I7="", "", OFFSET(E$5, calc!$Y22, 0)) -> 0.1724845996 | M7: =IF($I7="", "", OFFSET(F$5, calc!$Y22, 0)) -> 3.255
B8: =IF(C8="", "", B7+1) -> 3 | C8: AO724590 Corp | D8: MALAYSIA GOVERNMENT | E8: 2.403832991 | F8: 3.548 | G8: =IF(B8="", "", IF(ISERROR(MATCH(B8, calc!$Y$21:$Y$50, 0)), 1, 0)) -> 0 | I8: =IF(calc!W23="", "", calc!W23) -> 3 | J8: =IF($I8="", "", OFFSET(C$5, calc!$Y23, 0)) -> AO724590 Corp | K8: =IF($I8="", "", OFFSET(D$5, calc!$Y23, 0)) -> MALAYSIA GOVERNMENT | L8: =IF($I8="", "", OFFSET(E$5, calc!$Y23, 0)) -> 2.403832991 | M8: =IF($I8="", "", OFFSET(F$5, calc!$Y23, 0)) -> 3.548
B9: 4 | C9: AU365855 Corp | D9: MALAYSIA T-BILL | E9: 0.2108145106 | F9: 3.255 | G9: =IF(B9="", "", IF(ISERROR(MATCH(B9, calc!$Y$21:$Y$50, 0)), 1, 0)) -> 0 | I9: =IF(calc!W24="", "", calc!W24) -> 4 | J9: =IF($I9="", "", OFFSET(C$5, calc!$Y24, 0)) -> AU365855 Corp | K9: =IF($I9="", "", OFFSET(D$5, calc!$Y24, 0)) -> MALAYSIA T-BILL | L9: =IF($I9="", "", OFFSET(E$5, calc!$Y24, 0)) -> 0.2108145106 | M9: =IF($I9="", "", OFFSET(F$5, calc!$Y24, 0)) -> 3.255
B10: 5 | C10: AR129958 Corp | D10: MALAYSIA ISLAMIC T-BILL | E10: 0.3832991102 | F10: 3.345 | G10: =IF(B10="", "", IF(ISERROR(MATCH(B10, calc!$Y$21:$Y$50, 0)), 1, 0)) -> 0 | I10: =IF(calc!W25="", "", calc!W25) -> 5 | J10: =IF($I10="", "", OFFSET(C$5, calc!$Y25, 0)) -> AR129958 Corp | K10: =IF($I10="", "", OFFSET(D$5, calc!$Y25, 0)) -> MALAYSIA ISLAMIC T-BILL | L10: =IF($I10="", "", OFFSET(E$5, calc!$Y25, 0)) -> 0.3832991102 | M10: =IF($I10="", "", OFFSET(F$5, calc!$Y25, 0)) -> 3.345
B11: 6 | C11: AR793937 Corp | D11: MALAYSIA T-BILL | E11: 0.2491444216 | F11: 3.255 | G11: =IF(B11="", "", IF(ISERROR(MATCH(B11, calc!$Y$21:$Y$50, 0)), 1, 0)) -> 0 | I11: =IF(calc!W26="", "", calc!W26) -> 6 | J11: =IF($I11="", "", OFFSET(C$5, calc!$Y26, 0)) -> AR793937 Corp | K11: =IF($I11="", "", OFFSET(D$5, calc!$Y26, 0)) -> MALAYSIA T-BILL | L11: =IF($I11="", "", OFFSET(E$5, calc!$Y26, 0)) -> 0.2491444216 | M11: =IF($I11="", "", OFFSET(F$5, calc!$Y26, 0)) -> 3.255
B12: 7 | C12: AT536680 Corp | D12: MALAYSIA ISLAMIC T-BILL | E12: 0.05749486653 | F12: 3.343 | G12: =IF(B12="", "", IF(ISERROR(MATCH(B12, calc!$Y$21:$Y$50, 0)), 1, 0)) -> 0 | I12: =IF(calc!W27="", "", calc!W27) -> 7 | J12: =IF($I12="", "", OFFSET(C$5, calc!$Y27, 0)) -> AT536680 Corp | K12: =IF($I12="", "", OFFSET(D$5, calc!$Y27, 0)) -> MALAYSIA ISLAMIC T-BILL | L12: =IF($I12="", "", OFFSET(E$5, calc!$Y27, 0)) -> 0.05749486653 | M12: =IF($I12="", "", OFFSET(F$5, calc!$Y27, 0)) -> 3.343
B13: 8 | C13: AQ803695 Corp | D13: MALAYSIA T-BILL | E13: 0.3258042437 | F13: 3.256 | G13: =IF(B13="", "", IF(ISERROR(MATCH(B13, calc!$Y$21:$Y$50, 0)), 1, 0)) -> 0 | I13: =IF(calc!W28="", "", calc!W28) -> 8 | J13: =IF($I13="", "", OFFSET(C$5, calc!$Y28, 0)) -> AQ803695 Corp | K13: =IF($I13="", "", OFFSET(D$5, calc!$Y28, 0)) -> MALAYSIA T-BILL | L13: =IF($I13="", "", OFFSET(E$5, calc!$Y28, 0)) -> 0.3258042437 | M13: =IF($I13="", "", OFFSET(F$5, calc!$Y28, 0)) -> 3.256
G14: =IF(B14="", "", IF(ISERROR(MATCH(B14, calc!$Y$21:$Y$50, 0)), 1, 0)) ->  | I14: =IF(calc!W29="", "", calc!W29) ->  | J14: =IF($I14="", "", OFFSET(C$5, calc!$Y29, 0)) ->  | K14: =IF($I14="", "", OFFSET(D$5, calc!$Y29, 0)) ->  | L14: =IF($I14="", "", OFFSET(E$5, calc!$Y29, 0)) ->  | M14: =IF($I14="", "", OFFSET(F$5, calc!$Y29, 0)) -> 
G15: =IF(B15="", "", IF(ISERROR(MATCH(B15, calc!$Y$21:$Y$50, 0)), 1, 0)) ->  | I15: =IF(calc!W30="", "", calc!W30) ->  | J15: =IF($I15="", "", OFFSET(C$5, calc!$Y30, 0)) ->  | K15: =IF($I15="", "", OFFSET(D$5, calc!$Y30, 0)) ->  | L15: =IF($I15="", "", OFFSET(E$5, calc!$Y30, 0)) ->  | M15: =IF($I15="", "", OFFSET(F$5, calc!$Y30, 0)) -> 
G16: =IF(B16="", "", IF(ISERROR(MATCH(B16, calc!$Y$21:$Y$50, 0)), 1, 0)) ->  | I16: =IF(calc!W31="", "", calc!W31) ->  | J16: =IF($I16="", "", OFFSET(C$5, calc!$Y31, 0)) ->  | K16: =IF($I16="", "", OFFSET(D$5, calc!$Y31, 0)) ->  | L16: =IF($I16="", "", OFFSET(E$5, calc!$Y31, 0)) ->  | M16: =IF($I16="", "", OFFSET(F$5, calc!$Y31, 0)) -> 
G17: =IF(B17="", "", IF(ISERROR(MATCH(B17, calc!$Y$21:$Y$50, 0)), 1, 0)) ->  | I17: =IF(calc!W32="", "", calc!W32) ->  | J17: =IF($I17="", "", OFFSET(C$5, calc!$Y32, 0)) ->  | K17: =IF($I17="", "", OFFSET(D$5, calc!$Y32, 0)) ->  | L17: =IF($I17="", "", OFFSET(E$5, calc!$Y32, 0)) ->  | M17: =IF($I17="", "", OFFSET(F$5, calc!$Y32, 0)) -> 
G18: =IF(B18="", "", IF(ISERROR(MATCH(B18, calc!$Y$21:$Y$50, 0)), 1, 0)) ->  | I18: =IF(calc!W33="", "", calc!W33) ->  | J18: =IF($I18="", "", OFFSET(C$5, calc!$Y33, 0)) ->  | K18: =IF($I18="", "", OFFSET(D$5, calc!$Y33, 0)) ->  | L18: =IF($I18="", "", OFFSET(E$5, calc!$Y33, 0)) ->  | M18: =IF($I18="", "", OFFSET(F$5, calc!$Y33, 0)) -> 
G19: =IF(B19="", "", IF(ISERROR(MATCH(B19, calc!$Y$21:$Y$50, 0)), 1, 0)) ->  | I19: =IF(calc!W34="", "", calc!W34) ->  | J19: =IF($I19="", "", OFFSET(C$5, calc!$Y34, 0)) ->  | K19: =IF($I19="", "", OFFSET(D$5, calc!$Y34, 0)) ->  | L19: =IF($I19="", "", OFFSET(E$5, calc!$Y34, 0)) ->  | M19: =IF($I19="", "", OFFSET(F$5, calc!$Y34, 0)) -> 
G20: =IF(B20="", "", IF(ISERROR(MATCH(B20, calc!$Y$21:$Y$50, 0)), 1, 0)) ->  | I20: =IF(calc!W35="", "", calc!W35) ->  | J20: =IF($I20="", "", OFFSET(C$5, calc!$Y35, 0)) ->  | K20: =IF($I20="", "", OFFSET(D$5, calc!$Y35, 0)) ->  | L20: =IF($I20="", "", OFFSET(E$5, calc!$Y35, 0)) ->  | M20: =IF($I20="", "", OFFSET(F$5, calc!$Y35, 0)) -> 
G21: =IF(B21="", "", IF(ISERROR(MATCH(B21, calc!$Y$21:$Y$50, 0)), 1, 0)) ->  | I21: =IF(calc!W36="", "", calc!W36) ->  | J21: =IF($I21="", "", OFFSET(C$5, calc!$Y36, 0)) ->  | K21: =IF($I21="", "", OFFSET(D$5, calc!$Y36, 0)) ->  | L21: =IF($I21="", "", OFFSET(E$5, calc!$Y36, 0)) ->  | M21: =IF($I21="", "", OFFSET(F$5, calc!$Y36, 0)) -> 
G22: =IF(B22="", "", IF(ISERROR(MATCH(B22, calc!$Y$21:$Y$50, 0)), 1, 0)) ->  | I22: =IF(calc!W37="", "", calc!W37) ->  | J22: =IF($I22="", "", OFFSET(C$5, calc!$Y37, 0)) ->  | K22: =IF($I22="", "", OFFSET(D$5, calc!$Y37, 0)) ->  | L22: =IF($I22="", "", OFFSET(E$5, calc!$Y37, 0)) ->  | M22: =IF($I22="", "", OFFSET(F$5, calc!$Y37, 0)) -> 
G23: =IF(B23="", "", IF(ISERROR(MATCH(B23, calc!$Y$21:$Y$50, 0)), 1, 0)) ->  | I23: =IF(calc!W38="", "", calc!W38) ->  | J23: =IF($I23="", "", OFFSET(C$5, calc!$Y38, 0)) ->  | K23: =IF($I23="", "", OFFSET(D$5, calc!$Y38, 0)) ->  | L23: =IF($I23="", "", OFFSET(E$5, calc!$Y38, 0)) ->  | M23: =IF($I23="", "", OFFSET(F$5, calc!$Y38, 0)) -> 
G24: =IF(B24="", "", IF(ISERROR(MATCH(B24, calc!$Y$21:$Y$50, 0)), 1, 0)) ->  | I24: =IF(calc!W39="", "", calc!W39) ->  | J24: =IF($I24="", "", OFFSET(C$5, calc!$Y39, 0)) ->  | K24: =IF($I24="", "", OFFSET(D$5, calc!$Y39, 0)) ->  | L24: =IF($I24="", "", OFFSET(E$5, calc!$Y39, 0)) ->  | M24: =IF($I24="", "", OFFSET(F$5, calc!$Y39, 0)) -> 
G25: =IF(B25="", "", IF(ISERROR(MATCH(B25, calc!$Y$21:$Y$50, 0)), 1, 0)) ->  | I25: =IF(calc!W40="", "", calc!W40) ->  | J25: =IF($I25="", "", OFFSET(C$5, calc!$Y40, 0)) ->  | K25: =IF($I25="", "", OFFSET(D$5, calc!$Y40, 0)) ->  | L25: =IF($I25="", "", OFFSET(E$5, calc!$Y40, 0)) ->  | M25: =IF($I25="", "", OFFSET(F$5, calc!$Y40, 0)) -> 
G26: =IF(B26="", "", IF(ISERROR(MATCH(B26, calc!$Y$21:$Y$50, 0)), 1, 0)) ->  | I26: =IF(calc!W41="", "", calc!W41) ->  | J26: =IF($I26="", "", OFFSET(C$5, calc!$Y41, 0)) ->  | K26: =IF($I26="", "", OFFSET(D$5, calc!$Y41, 0)) ->  | L26: =IF($I26="", "", OFFSET(E$5, calc!$Y41, 0)) ->  | M26: =IF($I26="", "", OFFSET(F$5, calc!$Y41, 0)) -> 
G27: =IF(B27="", "", IF(ISERROR(MATCH(B27, calc!$Y$21:$Y$50, 0)), 1, 0)) ->  | I27: =IF(calc!W42="", "", calc!W42) ->  | J27: =IF($I27="", "", OFFSET(C$5, calc!$Y42, 0)) ->  | K27: =IF($I27="", "", OFFSET(D$5, calc!$Y42, 0)) ->  | L27: =IF($I27="", "", OFFSET(E$5, calc!$Y42, 0)) ->  | M27: =IF($I27="", "", OFFSET(F$5, calc!$Y42, 0)) -> 
G28: =IF(B28="", "", IF(ISERROR(MATCH(B28, calc!$Y$21:$Y$50, 0)), 1, 0)) ->  | I28: =IF(calc!W43="", "", calc!W43) ->  | J28: =IF($I28="", "", OFFSET(C$5, calc!$Y43, 0)) ->  | K28: =IF($I28="", "", OFFSET(D$5, calc!$Y43, 0)) ->  | L28: =IF($I28="", "", OFFSET(E$5, calc!$Y43, 0)) ->  | M28: =IF($I28="", "", OFFSET(F$5, calc!$Y43, 0)) -> 
G29: =IF(B29="", "", IF(ISERROR(MATCH(B29, calc!$Y$21:$Y$50, 0)), 1, 0)) ->  | I29: =IF(calc!W44="", "", calc!W44) ->  | J29: =IF($I29="", "", OFFSET(C$5, calc!$Y44, 0)) ->  | K29: =IF($I29="", "", OFFSET(D$5, calc!$Y44, 0)) ->  | L29: =IF($I29="", "", OFFSET(E$5, calc!$Y44, 0)) ->  | M29: =IF($I29="", "", OFFSET(F$5, calc!$Y44, 0)) -> 
G30: =IF(B30="", "", IF(ISERROR(MATCH(B30, calc!$Y$21:$Y$50, 0)), 1, 0)) ->  | I30: =IF(calc!W45="", "", calc!W45) ->  | J30: =IF($I30="", "", OFFSET(C$5, calc!$Y45, 0)) ->  | K30: =IF($I30="", "", OFFSET(D$5, calc!$Y45, 0)) ->  | L30: =IF($I30="", "", OFFSET(E$5, calc!$Y45, 0)) ->  | M30: =IF($I30="", "", OFFSET(F$5, calc!$Y45, 0)) -> 
G31: =IF(B31="", "", IF(ISERROR(MATCH(B31, calc!$Y$21:$Y$50, 0)), 1, 0)) ->  | I31: =IF(calc!W46="", "", calc!W46) ->  | J31: =IF($I31="", "", OFFSET(C$5, calc!$Y46, 0)) ->  | K31: =IF($I31="", "", OFFSET(D$5, calc!$Y46, 0)) ->  | L31: =IF($I31="", "", OFFSET(E$5, calc!$Y46, 0)) ->  | M31: =IF($I31="", "", OFFSET(F$5, calc!$Y46, 0)) -> 
G32: =IF(B32="", "", IF(ISERROR(MATCH(B32, calc!$Y$21:$Y$50, 0)), 1, 0)) ->  | I32: =IF(calc!W47="", "", calc!W47) ->  | J32: =IF($I32="", "", OFFSET(C$5, calc!$Y47, 0)) ->  | K32: =IF($I32="", "", OFFSET(D$5, calc!$Y47, 0)) ->  | L32: =IF($I32="", "", OFFSET(E$5, calc!$Y47, 0)) ->  | M32: =IF($I32="", "", OFFSET(F$5, calc!$Y47, 0)) -> 
G33: =IF(B33="", "", IF(ISERROR(MATCH(B33, calc!$Y$21:$Y$50, 0)), 1, 0)) ->  | I33: =IF(calc!W48="", "", calc!W48) ->  | J33: =IF($I33="", "", OFFSET(C$5, calc!$Y48, 0)) ->  | K33: =IF($I33="", "", OFFSET(D$5, calc!$Y48, 0)) ->  | L33: =IF($I33="", "", OFFSET(E$5, calc!$Y48, 0)) ->  | M33: =IF($I33="", "", OFFSET(F$5, calc!$Y48, 0)) -> 
G34: =IF(B34="", "", IF(ISERROR(MATCH(B34, calc!$Y$21:$Y$50, 0)), 1, 0)) ->  | I34: =IF(calc!W49="", "", calc!W49) ->  | J34: =IF($I34="", "", OFFSET(C$5, calc!$Y49, 0)) ->  | K34: =IF($I34="", "", OFFSET(D$5, calc!$Y49, 0)) ->  | L34: =IF($I34="", "", OFFSET(E$5, calc!$Y49, 0)) ->  | M34: =IF($I34="", "", OFFSET(F$5, calc!$Y49, 0)) -> 
G35: =IF(B35="", "", IF(ISERROR(MATCH(B35, calc!$Y$21:$Y$50, 0)), 1, 0)) ->  | I35: =IF(calc!W50="", "", calc!W50) ->  | J35: =IF($I35="", "", OFFSET(C$5, calc!$Y50, 0)) ->  | K35: =IF($I35="", "", OFFSET(D$5, calc!$Y50, 0)) ->  | L35: =IF($I35="", "", OFFSET(E$5, calc!$Y50, 0)) ->  | M35: =IF($I35="", "", OFFSET(F$5, calc!$Y50, 0)) -> 
G36: =IF(B36="", "", IF(ISERROR(MATCH(B36, calc!$Y$21:$Y$50, 0)), 1, 0)) -> 

Sheet curv
B2: TAB: CALCULATION OF CURVATURE PROXY USING YIELDS
B4: dx | C4: 0.1 | J4: τ: (1 - e-x) / x = 0.5
B5: # | C5: x | D5: (1 - e-x) / x | E5: (1 - e-x) / x - e-x | F5: y = 0.5 | H5: Method | I5: α | J5: τ
B6: 1 | C6: =C4 -> 0.1 | D6: =(1 - EXP(-C6)) / C6 -> 0.9516258196 | E6: =D6 - EXP(-C6) -> 0.0467884016 | F6: 0.5 | H6: =calc!Q12 -> Diebold-Li | I6: =calc!S12 -> 0.7299270073 | J6: =$C$21/I6 -> 2.192
B7: =B6+1 -> 2 | C7: =C6+$C$4 -> 0.2 | D7: =(1 - EXP(-C7)) / C7 -> 0.9063462346 | E7: =D7 - EXP(-C7) -> 0.08761548153 | F7: 0.5 | H7: =calc!Q13 -> Fabozzi | I7: =calc!S13 -> 0.3333333333 | J7: =$C$21/I7 -> 4.8
B8: =B7+1 -> 3 | C8: =C7+$C$4 -> 0.3 | D8: =(1 - EXP(-C8)) / C8 -> 0.8639392644 | E8: 0.1231210437 | F8: 0.5 | H8: Selected | I8: =calc!I6 -> 0.3333333333 | J8: 4.8
B9: 4 | C9: 0.4 | D9: 0.8241998849 | E9: 0.1538798389 | F9: 0.5
B10: 5 | C10: 0.5 | D10: 0.7869386806 | E10: 0.1804080209 | F10: 0.5
B11: 6 | C11: 0.6 | D11: 0.7519806065 | E11: 0.2031689704 | F11: 0.5
B12: 7 | C12: 0.7 | D12: 0.7191638517 | E12: 0.2225785479 | F12: 0.5
B13: 8 | C13: 0.8 | D13: 0.6883387949 | E13: 0.2390098307 | F13: 0.5
B14: 9 | C14: 0.9 | D14: 0.6593670447 | E14: 0.252797385 | F14: 0.5
B15: 10 | C15: 1 | D15: 0.6321205588 | E15: 0.2642411177 | F15: 0.5
B16: 11 | C16: 1.1 | D16: 0.606480833 | E16: 0.2736097493 | F16: 0.5
B17: 12 | C17: 1.2 | D17: 0.5823381567 | E17: 0.2811439448 | F17: 0.5
B18: 13 | C18: 1.3 | D18: 0.5595909284 | E18: 0.2870591354 | F18: 0.5
B19: 14 | C19: 1.4 | D19: 0.5381450258 | E19: 0.2915480618 | F19: 0.5
B20: 15 | C20: 1.5 | D20: 0.5179132266 | E20: 0.2947830664 | F20: 0.5
B21: 16 | C21: 1.6 | D21: 0.4988146763 | E21: 0.2969181583 | F21: 0.5
B22: 17 | C22: 1.7 | D22: 0.4807743976 | E22: 0.2980908736 | F22: 0.5
B23: 18 | C23: 1.8 | D23: 0.4637228399 | E23: 0.2984239517 | F23: 0.5
B24: 19 | C24: 1.9 | D24: 0.4475954636 | E24: 0.2980268443 | F24: 0.5
B25: 20 | C25: 2 | D25: 0.4323323584 | E25: 0.2969970751 | F25: 0.5
B26: 21 | C26: 2.1 | D26: 0.4178778913 | E26: 0.2954214631 | F26: 0.5
B27: 22 | C27: 2.2 | D27: 0.4041803826 | E27: 0.2933772242 | F27: 0.5
B28: 23 | C28: 2.3 | D28: 0.3911918071 | E28: 0.2909329634 | F28: 0.5
B29: 24 | C29: 2.4 | D29: 0.3788675195 | E29: 0.2881495662 | F29: 0.5
B30: 25 | C30: 2.5 | D30: 0.3671660006 | E30: 0.2850810019 | F30: 0.5
B31: 26 | C31: 2.6 | D31: 0.3560486238 | E31: 0.2817750455 | F31: 0.5
B32: 27 | C32: 2.7 | D32: 0.3454794397 | E32: 0.278273927 | F32: 0.5
B33: 28 | C33: 2.8 | D33: 0.3354249776 | E33: 0.274614915 | F33: 0.5
B34: 29 | C34: 2.9 | D34: 0.325854062 | E34: 0.270830842 | F34: 0.5
B35: 30 | C35: 3 | D35: 0.3167376439 | E35: 0.2669505755 | F35: 0.5
B36: 31 | C36: 3.1 | D36: 0.3080486444 | E36: 0.262999442 | F36: 0.5
B37: 32 | C37: 3.2 | D37: 0.2997618113 | E37: 0.2589996073 | F37: 0.5
B38: 33 | C38: 3.3 | D38: 0.2918535856 | E38: 0.2549704182 | F38: 0.5
B39: 34 | C39: 3.4 | D39: 0.2843019794 | E39: 0.2509287095 | F39: 0.5
B40: =B39+1 -> 35 | C40: =C39+$C$4 -> 3.5 | D40: 0.2770864619 | E40: =D40 - EXP(-C40) -> 0.2468890785 | F40: 0.5
B41: 36 | C41: 3.6 | D41: 0.2701878549 | E41: 0.2428641324 | F41: 0.5
B42: 37 | C42: 3.7 | D42: 0.2635882361 | E42: 0.2388647096 | F42: 0.5
B43: 38 | C43: 3.8 | D43: 0.2572708495 | E43: 0.2349000777 | F43: 0.5
B44: 39 | C44: 3.9 | D44: 0.2512200227 | E44: 0.2309781113 | F44: 0.5
B45: 40 | C45: 4 | D45: 0.2454210903 | E45: 0.2271054514 | F45: 0.5
B46: 41 | C46: 4.1 | D46: 0.2398603231 | E46: 0.2232876477 | F46: 0.5
B47: 42 | C47: 4.2 | D47: 0.2345248627 | E47: 0.2195292858 | F47: 0.5
B48: 43 | C48: 4.3 | D48: 0.2294026607 | E48: 0.2158341017 | F48: 0.5
B49: 44 | C49: 4.4 | D49: 0.2244824227 | E49: 0.2122050828 | F49: 0.5
B50: 45 | C50: 4.5 | D50: 0.2197535563 | E50: 0.2086445598 | F50: 0.5
B51: =B50+1 -> 46 | C51: =C50+$C$4 -> 4.6 | D51: 0.2152061227 | E51: =D51 - EXP(-C51) -> 0.2051542869 | F51: 0.5
B52: 47 | C52: 4.7 | D52: 0.2108307921 | E52: 0.201735515 | F52: 0.5
B53: 48 | C53: 4.8 | D53: 0.2066188027 | E53: 0.1983890556 | F53: 0.5
B54: 49 | C54: 4.9 | D54: 0.2025619218 | E54: 0.1951153388 | F54: 0.5
B55: 50 | C55: 5 | D55: 0.1986524106 | E55: 0.1919144636 | F55: 0.5
B56: 51 | C56: 5.1 | D56: 0.1948829909 | E56: 0.1887862443 | F56: 0.5
B57: 52 | C57: 5.2 | D57: 0.1912468145 | E57: 0.1857302501 | F57: 0.5
B58: 53 | C58: 5.3 | D58: 0.1877374351 | E58: 0.1827458412 | F58: 0.5
B59: 54 | C59: 5.4 | D59: 0.1843487813 | E59: 0.1798322004 | F59: 0.5
B60: 55 | C60: 5.5 | D60: 0.1810751325 | E60: 0.176988361 | F60: 0.5
B61: =B60+1 -> 56 | C61: =C60+$C$4 -> 5.6 | D61: 0.1779110958 | E61: =D61 - EXP(-C61) -> 0.174213232 | F61: 0.5
B62: 57 | C62: 5.7 | D62: 0.174851585 | E62: 0.1715056195 | F62: 0.5
B63: 58 | C63: 5.8 | D63: 0.1718918009 | E63: 0.1688642462 | F63: 0.5
B64: 59 | C64: 5.9 | D64: 0.1690272127 | E64: 0.1662877679 | F64: 0.5
B65: 60 | C65: 6 | D65: 0.1662535413 | E65: 0.1637747891 | F65: 0.5
B66: 61 | C66: 6.1 | D66: 0.163566743 | E66: 0.1613238753 | F66: 0.5
B67: =B66+1 -> 62 | C67: =C66+$C$4 -> 6.2 | D67: 0.1609629951 | E67: =D67 - EXP(-C67) -> 0.1589335644 | F67: 0.5
B68: 63 | C68: 6.3 | D68: 0.1584386818 | E68: 0.156602377 | F68: 0.5
B69: 64 | C69: 6.4 | D69: 0.1559903817 | E69: 0.1543288244 | F69: 0.5
B70: 65 | C70: 6.5 | D70: 0.1536148555 | E70: 0.1521114163 | F70: 0.5
B71: 66 | C71: 6.6 | D71: 0.1513090351 | E71: 0.1499486671 | F71: 0.5
B72: 67 | C72: 6.7 | D72: =(1 - EXP(-C72)) / C72 -> 0.1490700131 | E72: 0.1478391012 | F72: 0.5
B73: 68 | C73: 6.8 | D73: 0.1468950331 | E73: 0.1457812579 | F73: 0.5
B74: 69 | C74: 6.9 | D74: 0.1447814804 | E74: 0.1437736949 | F74: 0.5
B75: 70 | C75: 7 | D75: 0.142726874 | E75: 0.141814992 | F75: 0.5

Sheet config
B2: TAB: CONFIGURATION FILE | D2: Calculation enabled | F2: TRUE
D3: Test connection | F3: =_xll.AC.test.connection() -> host: CA2013466W3; user: Konstantin.Rybakov; key: null
B5: Term structure estimation methods | D5: Term structure output keys | H5: Alpha (α) range
B6: Diebold-Li | D6: TS-coeffs | F6: Array of term structure regression coefficients | H6: minimum | I6: 0.1
B7: Fabozzi | D7: TS-term-structure | F7: Term structure yields | H7: maximum | I7: 1
B8: Nelson-Siegel | D8: TS-elimination-data | F8: Elimnated sample observations | H8: delta | I8: 0.05
B9: Ridge-OLS | D9: TS-index-mapping | F9: Mapping between the indices of original and final samples
D10: TS-R2 | F10: Mapping sample index => R2 (term structure ols)
B12: Array formula cell address | C12: number of rows | D12: number of cols | E12: Description
B13: =addressFla(calc!I12) -> 'calc'!$I$12 | C13: =calc!D8 -> 8 | D13: 4 | E13: Final sample and term structure
B14: =addressFla(calc!N12) -> 'calc'!$N$12 | C14: 18 | D14: 2 | E14: R2(α) sequence of values
B15: =addressFla(calc!R21) -> 'calc'!$R$21 | C15: =calc!Y13 -> 0 | D15: 4 | E15: Elimination output array
B16: =addressFla(calc!X21) -> 'calc'!$X$21 | C16: =calc!D8 -> 8 | D16: 2 | E16: Index mapping for the final sample
B20: Graph configuration
B21: Parameter | C21: Value | E21: Description
B22: line | C22: no | E22: Set to yes/no to set line visible or non-visible
B23: line-size | C23: 1.5 | E23: Set line size
B24: marker | C24: yes | E24: Set to yes/no to set markers visible or non-visible
B25: marker-size | C25: 4 | E25: Set markers size (larger or equal than 2)
B26: exclude-series | E26: List of series names that are not modified
B27: exclude-charts | E27: List of charts that are not modified
B28: reference-chart | C28: 1 | E28: Chart index used for series colors mar]tching
B29: match-colors | C29: no | E29: Set yes if colors of each series is matched to the series color in the reference chart

Sheet guide
B2: Package: IRB.YTS Available functions for term structure estimation: CalculatorNelsonSiegel calc = calcTS(Map<Double, Double> sample, String method) where sample is the mapping t => y[t] of maturity term into related yield rate and method parameter is the method used to estimate the term structure. The list of methods includes: Diebold-Li Fabozzi Nelson-Siegel Ridge-OLS double[][] (double[]) CalculatorNelsonSiegel calc, String key) where key represents the key for a specific retrieved field. The following keys can be used: 1. TS-coeffs: coefficients of the term structure (as a list (α, β0, β1, β2); 2. TS-yields-fitted: fitted term structure values; 3. TS-R2: the values R2(α) for a grid of α values; Short cut key combinations: Ctrl+Shft+C - calculate all; Ctrl+Shift+R - refresh addin; Ctrl+Shft+S - set the data ranges; Ctrl+Shft+D - disable calculations; Ctrl+Shft+G - update graphs, Ctrl+Shft+H - highlight the graph used as a reference
